bitfinex/quotes_BTCUSD_20251009
["timestamp","ask_amount","ask_price","bid_price","bid_amount"]
[1760018897432,2.09531761,121990.0,121980.0,0.00102173]
[1760018897639,2.21714368,121990.0,121980.0,0.00102173]
[1760018897856,1.6170376,121990.0,121980.0,0.00102173]
[1760018898061,2.31859131,121990.0,121980.0,0.00102173]
[1760018898325,2.21859131,121990.0,121980.0,0.00102173]
[1760018898909,2.31859131,121990.0,121980.0,0.00102173]
[1760018899482,1.99303932,121990.0,121980.0,0.00102173]
[1760018899673,2.06651131,121990.0,121980.0,1e-08]
[1760018899869,0.26398818,121960.0,121950.0,0.01283927]
[1760018900082,1.34946636,121960.0,121950.0,0.01283927]
[1760018900299,1.41338636,121960.0,121950.0,0.01283927]
[1760018900891,1.44814374,121960.0,121950.0,0.01283927]
[1760018901096,1.56366291,121960.0,121950.0,1e-08]
[1760018901297,0.68262286,121950.0,121940.0,0.10776628]
[1760018901541,1.42376824,121950.0,121940.0,0.10776628]
[1760018901717,1.67774825,121950.0,121940.0,0.10776628]
[1760018902048,1.44729137,121950.0,121940.0,0.10776628]
[1760018902263,0.83371498,121950.0,121940.0,0.10776628]
[1760018902478,1.76349477,121950.0,121940.0,0.10776628]
[1760018902633,1.42613477,121950.0,121940.0,0.10776628]
[1760018902836,1.76353477,121950.0,121940.0,0.10776628]
[1760018903037,1.78519789,121950.0,121940.0,0.10776628]
[1760018903451,1.19328462,121950.0,121940.0,0.10776628]
[1760018903785,1.46559419,121950.0,121940.0,0.10776628]
[1760018903983,1.78133107,121950.0,121940.0,0.10776628]
[1760018904200,1.80252616,121950.0,121940.0,0.10776628]
[1760018905925,1.46512616,121950.0,121940.0,0.10776628]
[1760018906119,1.49068155,121950.0,121940.0,0.10776628]
[1760018906347,1.86402355,121950.0,121940.0,0.10981056]
[1760018907495,0.60405544,121910.0,121900.0,0.11096763]
[1760018907721,1.36274077,121910.0,121900.0,0.11096763]
[1760018908257,1.61490077,121910.0,121900.0,0.11096763]
[1760018908690,1.61540729,121910.0,121900.0,0.11096763]
[1760018908898,1.61740729,121910.0,121900.0,0.11096763]
[1760018909108,1.36524729,121910.0,121900.0,0.27503653]
[1760018909337,1.39539919,121910.0,121900.0,0.11096763]
[1760018909550,1.41794916,121910.0,121900.0,0.11096763]
[1760018909772,1.67010916,121910.0,121900.0,0.11096763]
[1760018909987,1.69663717,121910.0,121900.0,0.11096763]
[1760018910198,1.68485874,121910.0,121900.0,0.11096763]
[1760018910411,1.45922675,121910.0,121900.0,0.11096763]
[1760018910679,1.68730876,121910.0,121900.0,0.11096763]
[1760018910902,1.68730876,121910.0,121900.0,1e-08]
[1760018910903,1.71383677,121910.0,121900.0,1e-08]
[1760018911120,1.80985873,121910.0,121900.0,1e-08]
[1760018911342,1.55769873,121910.0,121900.0,1e-08]
[1760018911571,1.88552674,121910.0,121900.0,1e-08]
[1760018911803,0.50410929,121870.0,121860.0,0.11423898]
[1760018912013,1.70621608,121870.0,121860.0,0.11423898]
[1760018912231,1.6250855,121870.0,121860.0,0.11423898]
[1760018912803,0.81578282,121870.0,121860.0,0.11423898]
[1760018913001,0.53743017,121870.0,121860.0,0.27836174]
[1760018913215,1.47825259,121870.0,121860.0,0.27836174]
[1760018913413,1.47825259,121870.0,121860.0,0.11423898]
[1760018913614,1.22609259,121870.0,121860.0,0.11423898]
[1760018913819,0.80153945,121870.0,121860.0,0.11423898]
[1760018914003,0.82237826,121870.0,121860.0,0.29633939]
[1760018914207,0.08362827,121870.0,121860.0,0.32682366]
[1760018914413,0.18362826,121870.0,121860.0,0.36585366]
[1760018914794,0.18362826,121870.0,121860.0,0.32682366]
[1760018914948,0.18562826,121870.0,121860.0,0.32682366]
[1760018915154,0.18362826,121870.0,121860.0,0.32682366]
[1760018915561,0.08362827,121870.0,121860.0,0.42320806]
[1760018915762,0.08362827,121870.0,121860.0,0.67540806]
[1760018915923,0.18362826,121870.0,121860.0,0.67540806]
[1760018916311,0.08362827,121870.0,121860.0,0.67540806]
[1760018916745,0.08362827,121870.0,121860.0,0.36585366]
[1760018916957,0.18362826,121870.0,121860.0,0.70337366]
[1760018917202,0.08362827,121870.0,121860.0,0.70337366]
[1760018917416,0.18362826,121870.0,121860.0,0.70337366]
[1760018918036,0.18362826,121870.0,121860.0,0.45117366]
[1760018918248,0.08362827,121870.0,121860.0,0.76926006]
[1760018918702,0.00050621,121870.0,121860.0,0.76926006]
[1760018918919,0.00050621,121870.0,121860.0,0.51706006]
[1760018919136,0.18592502,121920.0,121910.0,0.16405545]
[1760018919346,0.18592502,121920.0,121900.0,0.16406701]
[1760018919347,0.09999999,121910.0,121900.0,0.16406701]
[1760018919549,0.2831935,121910.0,121900.0,0.16419143]
[1760018919754,0.2436835,121910.0,121900.0,0.16419143]
[1760018920174,0.2436835,121910.0,121900.0,0.1755328]
[1760018920515,0.2436835,121910.0,121900.0,0.2619728]
[1760018920516,0.09787351,121910.0,121900.0,0.2619728]
[1760018920733,0.09887351,121910.0,121900.0,0.4741528]
[1760018920994,0.08412206,121910.0,121900.0,0.4741528]
[1760018921209,0.08412206,121910.0,121900.0,0.2619728]
[1760018921457,0.18412205,121910.0,121900.0,0.5994528]
[1760018921814,0.18412205,121910.0,121900.0,0.2619728]
[1760018922015,0.18412205,121910.0,121900.0,0.3472928]
[1760018922232,0.08412206,121910.0,121900.0,0.5994528]
[1760018922438,0.18412205,121910.0,121900.0,0.2619728]
[1760018922643,0.18412205,121910.0,121900.0,0.5994528]
[1760018922868,0.18412205,121910.0,121900.0,0.2219928]
[1760018923079,0.18412205,121910.0,121900.0,0.3472928]
[1760018923291,1e-08,121910.0,121900.0,0.3472928]
[1760018923499,1e-08,121910.0,121900.0,0.5994128]
[1760018923702,0.11478678,121930.0,121920.0,0.16404199]
[1760018923910,0.09790885,121930.0,121920.0,0.53400055]
[1760018924120,0.01478679,121930.0,121920.0,0.28188055]
[1760018924329,0.01478679,121940.0,121930.0,0.16402854]
[1760018924528,0.10020825,121950.0,121940.0,0.16401508]
[1760018924738,0.19812628,121950.0,121940.0,0.46231508]
[1760018924947,0.19812628,121950.0,121940.0,0.57942744]
[1760018925366,0.09812629,121950.0,121940.0,0.57942744]
[1760018925574,0.19812628,121950.0,121940.0,0.57942744]
[1760018925782,0.19812628,121950.0,121940.0,0.32743186]
[1760018925985,0.19812628,121950.0,121940.0,0.62475186]
[1760018926192,0.01500423,121950.0,121940.0,0.41275186]
[1760018926397,0.01500423,121950.0,121940.0,0.66483186]
[1760018926801,0.01500423,121950.0,121940.0,0.32743186]
[1760018927008,0.01500423,121950.0,121940.0,0.41275186]
[1760018927208,0.01500423,121950.0,121940.0,0.66483186]
[1760018927423,0.01500423,121950.0,121940.0,0.41275186]
[1760018927834,0.01500423,121950.0,121940.0,0.66479186]
[1760018928038,0.01500423,121950.0,121940.0,0.41275186]
[1760018928245,0.01500423,121950.0,121940.0,0.66479186]
[1760018928428,0.01500423,121950.0,121940.0,0.32743186]
[1760018928673,0.09812629,121950.0,121940.0,0.2503995]
[1760018928880,0.20553007,121950.0,121940.0,0.5476395]
[1760018929301,0.20553007,121950.0,121940.0,0.5877195]
[1760018930120,0.19812628,121950.0,121940.0,0.5877195]
[1760018930328,0.205547,121950.0,121940.0,0.5877195]
[1760018930528,0.205547,121950.0,121940.0,0.6647523]
[1760018930823,0.205547,121950.0,121940.0,0.3274323]
[1760018931023,0.205547,121950.0,121940.0,0.2873523]
[1760018931222,0.205547,121950.0,121940.0,0.2103195]
[1760018931449,0.205547,121950.0,121940.0,0.5475995]
[1760018931659,0.205547,121950.0,121940.0,0.5876395]
[1760018932254,0.02242495,121950.0,121940.0,0.3356795]
[1760018932545,0.01500423,121950.0,121940.0,0.5876395]
[1760018932753,0.01500423,121950.0,121940.0,0.6646643]
[1760018933193,0.01500423,121950.0,121940.0,0.3274243]
[1760018933607,0.01500423,121950.0,121940.0,0.6646643]
[1760018934741,0.01500423,121950.0,121940.0,0.4127043]
[1760018934985,0.00020826,121950.0,121940.0,0.4127043]
[1760018935185,0.00020826,121950.0,121940.0,0.6646243]
[1760018935816,0.00020826,121950.0,121940.0,0.6546243]
[1760018936020,0.00020826,121950.0,121940.0,0.4027043]
[1760018936398,0.00020826,121950.0,121940.0,0.6545843]
[1760018937875,0.00020826,121950.0,121940.0,0.4027043]
[1760018938025,0.00020826,121950.0,121940.0,0.6545843]
[1760018938418,0.00020826,121950.0,121940.0,0.6545443]
[1760018939929,0.00020826,121950.0,121940.0,0.6545043]
[1760018940137,1e-08,121950.0,121940.0,0.4027043]
[1760018940351,0.00742072,121970.0,121960.0,0.16398819]
[1760018940547,0.12888166,121990.0,121980.0,0.1639613]
[1760018940749,0.20541002,121990.0,121980.0,0.5472213]
[1760018941014,0.20541002,121990.0,121980.0,0.3355013]
[1760018941154,0.19054277,121990.0,121980.0,0.2954213]
[1760018941359,0.90159325,121990.0,121980.0,0.08528]
[1760018941620,0.91865149,121990.0,121980.0,0.33704]
[1760018941789,0.91865149,121990.0,121980.0,0.00012442]
[1760018941965,0.91865149,121990.0,121980.0,0.25188442]
[1760018941966,0.85784572,121990.0,121980.0,0.25188442]
[1760018942384,0.27678553,121990.0,121980.0,0.41584572]
[1760018942581,0.44073339,121990.0,121980.0,0.48235572]
[1760018943054,0.44173339,121990.0,121980.0,0.23059572]
[1760018943263,0.23869553,121990.0,121980.0,0.23059572]
[1760018943509,0.19309553,121990.0,121980.0,0.31685572]
[1760018943710,0.18565472,121990.0,121980.0,0.31685572]
[1760018943889,0.18565472,121990.0,121980.0,0.56857572]
[1760018944035,0.18565472,121990.0,121980.0,0.31685572]
[1760018944240,0.18565472,121990.0,121980.0,0.29554572]
[1760018944445,0.23125472,121990.0,121980.0,0.52019572]
[1760018944650,0.85884572,121990.0,121980.0,0.00012442]
[1760018944847,1.19884572,121990.0,121980.0,0.00012442]
[1760018945121,1.22799762,121990.0,121980.0,0.00012442]
[1760018946049,1.22899762,121990.0,121980.0,0.00012442]
[1760018946452,1.22799762,121990.0,121980.0,0.00012442]
[1760018946657,1.23744162,121990.0,121980.0,0.00012442]
[1760018946856,1.25459023,121990.0,121980.0,0.00012442]
[1760018947167,1.26747832,121990.0,121980.0,0.00012442]
[1760018947777,1.51911832,121990.0,121980.0,0.00012442]
[1760018948002,1.25259023,121990.0,121980.0,0.00012442]
[1760018948225,0.82803709,121990.0,121980.0,0.00012442]
[1760018948363,1.25459023,121990.0,121980.0,0.00012442]
[1760018948780,1.25259023,121990.0,121980.0,0.00012442]
[1760018948985,1.25459023,121990.0,121980.0,0.00012442]
[1760018949230,1.52112993,121990.0,121980.0,0.00012442]
[1760018949430,1.28895088,121990.0,121980.0,0.00012442]
[1760018949629,1.54059088,121990.0,121980.0,0.00012442]
[1760018949834,1.35109191,121990.0,121980.0,0.00012442]
[1760018950218,1.60069191,121990.0,121980.0,0.00012442]
[1760018950421,1.34909191,121990.0,121980.0,0.00012442]
[1760018950644,1.60069191,121990.0,121980.0,0.00012442]
[1760018950846,1.34909191,121990.0,121980.0,0.00012442]
[1760018951066,1.60069191,121990.0,121980.0,0.00012442]
[1760018951364,1.34909191,121990.0,121980.0,0.00012442]
[1760018951574,1.57923096,121990.0,121980.0,0.00012442]
[1760018951782,1.58123096,121990.0,121980.0,0.00012442]
[1760018951992,1.26948993,121990.0,121980.0,0.00012442]
[1760018952202,0.68098893,121990.0,121980.0,0.00012442]
[1760018952413,1.16948994,121990.0,121980.0,0.00012442]
[1760018952618,1.33047846,121990.0,121980.0,0.00012442]
[1760018952825,1.26948993,121990.0,121980.0,0.00012442]
[1760018953026,1.54251088,121990.0,121980.0,0.00012442]
[1760018953232,1.26948993,121990.0,121980.0,0.00012442]
[1760018953539,1.52761118,121990.0,121980.0,0.00012442]
[1760018953753,1.55629083,121990.0,121980.0,0.00012442]
[1760018953959,1.53482988,121990.0,121980.0,0.00012442]
[1760018955215,1.28326988,121990.0,121980.0,0.00012442]
[1760018955428,1.55627835,121990.0,121980.0,0.00012442]
[1760018956031,1.30475835,121990.0,121980.0,0.00012442]
[1760018956261,1.55627835,121990.0,121980.0,0.00012442]
[1760018956482,1.30475835,121990.0,121980.0,0.00012442]
[1760018956688,1.55627835,121990.0,121980.0,0.00012442]
[1760018957529,1.364758,121990.0,121980.0,0.00012442]
[1760018957992,0.60400163,121950.0,121940.0,0.0013667]
[1760018958202,0.70637557,121950.0,121940.0,0.0013667]
[1760018958408,1.15784871,121950.0,121940.0,0.0013667]
[1760018958648,1.19757871,121950.0,121940.0,0.0013667]
[1760018959277,0.77302557,121950.0,121940.0,0.0013667]
[1760018959494,1.22773061,121950.0,121940.0,0.0013667]
[1760018960773,1.91865032,121950.0,121940.0,0.0013667]
[1760018961432,1.24265718,121950.0,121940.0,0.0013667]
[1760018961673,1.49405728,121950.0,121940.0,0.0013667]
[1760018961908,1.24265728,121950.0,121940.0,0.0013667]
[1760018962122,1.55574296,121950.0,121940.0,0.0013667]
[1760018962358,0.88178982,121950.0,121940.0,0.0013667]
[1760018962608,1.30634205,121950.0,121940.0,0.0013667]
[1760018963474,1.54281629,121950.0,121940.0,0.0013667]
[1760018963917,1.26126439,121950.0,121940.0,0.0013667]
[1760018964139,1.51266439,121950.0,121940.0,0.0013667]
[1760018964581,1.26126439,121950.0,121940.0,0.0013667]
[1760018964796,0.92126439,121950.0,121940.0,0.0013667]
[1760018965017,0.83471125,121950.0,121940.0,0.0013667]
[1760018965233,0.64465557,121950.0,121940.0,0.0013667]
[1760018965455,0.23129393,121950.0,121940.0,0.16538178]
[1760018965685,0.08327394,121950.0,121940.0,0.20961178]
[1760018965918,0.18327393,121950.0,121940.0,0.24953178]
[1760018966147,0.18527393,121950.0,121940.0,0.24953178]
[1760018966424,0.18327393,121950.0,121940.0,0.24953178]
[1760018966649,0.34727557,121950.0,121940.0,0.0455967]
[1760018966870,0.34827557,121950.0,121940.0,0.20961178]
[1760018967064,0.18327393,121950.0,121940.0,0.28654278]
[1760018967321,0.34727557,121950.0,121940.0,0.28654278]
[1760018967572,0.34727557,121950.0,121940.0,0.1225277]
[1760018968680,0.34727557,121950.0,121940.0,0.3528942]
[1760018968918,0.37419557,121950.0,121940.0,0.0455967]
[1760018969140,0.39329557,121950.0,121940.0,0.3570367]
[1760018969348,0.39329557,121950.0,121940.0,0.0204767]
[1760018969584,0.43302557,121950.0,121940.0,0.0013667]
[1760018969728,0.85757871,121950.0,121940.0,0.1362867]
[1760018969947,0.85757871,121950.0,121940.0,0.0013667]
[1760018969948,1.19757871,121950.0,121940.0,0.0013667]
[1760018970148,1.22773061,121950.0,121940.0,0.0013667]
[1760018970364,1.47897061,121950.0,121940.0,0.0013667]
[1760018970584,0.80317747,121950.0,121940.0,0.0013667]
[1760018970808,1.47997061,121950.0,121940.0,0.0013667]
[1760018971019,1.22873061,121950.0,121940.0,0.0013667]
[1760018971213,0.26404198,121920.0,121910.0,0.15492]
[1760018971417,0.16405545,121910.0,121900.0,0.01911]
[1760018971618,0.3471775,121910.0,121900.0,0.35559]
[1760018971834,0.3471775,121910.0,121900.0,0.38071]
[1760018972065,0.40141137,121910.0,121900.0,0.35559]
[1760018972285,0.26406889,121900.0,121890.0,0.10383]
[1760018972481,0.26406889,121900.0,121890.0,0.38772554]
[1760018972482,0.34719095,121900.0,121890.0,0.38772554]
[1760018972689,0.16408236,121890.0,121880.0,0.01911]
[1760018972891,0.36630441,121890.0,121880.0,0.35559]
[1760018973013,0.36630441,121890.0,121880.0,0.54480583]
[1760018975533,0.20222205,121890.0,121880.0,0.29360583]
[1760018975745,0.09999999,121890.0,121880.0,0.38520024]
[1760018975963,0.10015179,121900.0,121890.0,0.16408236]
[1760018976173,0.0001518,121900.0,121890.0,0.24767236]
[1760018976409,0.0001518,121900.0,121890.0,0.49879236]
[1760018978284,0.0001518,121900.0,121890.0,0.24767236]
[1760018978495,0.0001518,121900.0,121890.0,0.55553562]
[1760018978704,0.0001518,121900.0,121890.0,0.56377113]
[1760018978922,0.0001518,121900.0,121890.0,0.56477113]
[1760018979129,0.0001518,121900.0,121890.0,0.56377113]
[1760018979618,0.0001518,121900.0,121890.0,0.64789319]
[1760018979828,0.0001518,121900.0,121890.0,0.39681319]
[1760018980024,0.0001518,121900.0,121890.0,0.64789319]
[1760018980803,1e-08,121900.0,121890.0,0.67285318]
[1760018981456,1e-08,121900.0,121890.0,0.48511403]
[1760018981635,1e-08,121900.0,121890.0,0.73611403]
[1760018981926,1e-08,121900.0,121890.0,0.73511403]
[1760018982213,1e-08,121900.0,121890.0,0.73711403]
[1760018982712,1e-08,121900.0,121890.0,1.44850593]
[1760018983111,1e-08,121900.0,121890.0,1.44646593]
[1760018983322,1e-08,121900.0,121890.0,1.44846593]
[1760018983945,1e-08,121900.0,121890.0,1.54846592]
[1760018984793,1e-08,121900.0,121890.0,0.95626592]
[1760018985004,1e-08,121900.0,121890.0,1.97486592]
[1760018985213,1e-08,121900.0,121890.0,0.95626592]
[1760018985419,1e-08,121900.0,121890.0,1.97486592]
[1760018985825,1e-08,121900.0,121890.0,0.95626592]
[1760018986028,1e-08,121900.0,121890.0,1.97482592]
[1760018986236,1e-08,121900.0,121890.0,0.95626592]
[1760018986668,1e-08,121900.0,121890.0,1.28394593]
[1760018986916,1e-08,121900.0,121890.0,1.87478593]
[1760018987128,1e-08,121900.0,121890.0,1.62394593]
[1760018987342,0.00136659,121960.0,121950.0,0.16400164]
[1760018987558,0.00151895,121960.0,121950.0,0.5350718]
[1760018987766,0.00151895,121960.0,121950.0,0.5967218]
[1760018987970,0.00151895,121960.0,121950.0,0.2606018]
[1760018988175,0.00151895,121960.0,121950.0,0.5966818]
[1760018988759,0.00151895,121960.0,121950.0,0.2606018]
[1760018988967,0.00151895,121960.0,121950.0,0.5966818]
[1760018989986,0.00151895,121960.0,121950.0,0.42900386]
[1760018990200,0.16619502,121990.0,121970.0,0.16397474]
[1760018990201,0.06619503,121990.0,121970.0,0.16397474]
[1760018990376,0.06619503,121990.0,121980.0,0.59659743]
[1760018990587,0.16619502,121990.0,121980.0,0.5802013]
[1760018990792,0.06619503,122010.0,122000.0,0.16393442]
[1760018990992,0.00050798,122010.0,122000.0,0.43320442]
[1760018991196,0.10050797,122010.0,122000.0,0.58013442]
[1760018991409,0.10050797,122010.0,122000.0,0.40567647]
[1760018991563,0.00050798,122010.0,122000.0,0.65635647]
[1760018991765,0.10050797,122010.0,122000.0,0.65635647]
[1760018992765,0.00050798,122010.0,122000.0,0.65635647]
[1760018992990,0.00050798,122010.0,122000.0,0.65631647]
[1760018994477,0.00050798,122010.0,122000.0,0.65627647]
[1760018994675,0.00050798,122010.0,122000.0,0.48879853]
[1760018994884,0.08515503,122060.0,122050.0,0.16386726]
[1760018995067,0.06634735,122060.0,122050.0,0.61264088]
[1760018995295,0.16634734,122060.0,122050.0,0.61264088]
[1760018995620,0.10015231,122060.0,122050.0,0.36208088]
[1760018996071,0.10015231,122060.0,122050.0,0.61260088]
[1760018996425,0.00525827,122060.0,122050.0,0.36208088]
[1760018996654,0.00525827,122060.0,122050.0,0.61260088]
[1760018997253,0.00525827,122060.0,122050.0,0.61256088]
[1760018997684,0.00525827,122060.0,122050.0,0.27684088]
[1760018998092,0.00525827,122060.0,122050.0,0.61252088]
[1760018998479,0.00525827,122060.0,122050.0,0.27684088]
[1760018998681,0.16911211,122060.0,122050.0,0.07647362]
[1760018998884,0.10525826,122060.0,122050.0,0.36208088]
[1760018999092,0.00525827,122060.0,122050.0,0.36208088]
[1760018999293,0.10525826,122060.0,122050.0,0.36208088]
[1760018999638,0.00525827,122060.0,122050.0,0.61248088]
[1760018999836,0.00525827,122060.0,122050.0,0.61244088]
[1760018999995,0.00740855,122070.0,122060.0,0.16385384]
[1760019000192,0.0002,122080.0,122070.0,0.16384041]
[1760019000395,0.0002,122080.0,122070.0,0.21889041]
[1760019000596,0.0002,122080.0,122070.0,0.24404041]
[1760019000870,0.0002,122080.0,122070.0,0.49436041]
[1760019001702,0.00760855,122080.0,122070.0,0.16544]
[1760019001860,0.24714905,122080.0,122070.0,0.24758341]
[1760019002060,0.39108214,122080.0,122070.0,0.394113]
[1760019002271,0.41004214,122080.0,122070.0,0.375563]
[1760019002447,0.25929867,122070.0,122060.0,0.13783347]
[1760019002646,0.44982556,122070.0,122060.0,0.33548]
[1760019003047,0.24601515,122070.0,122060.0,0.49933384]
[1760019003254,0.24601515,122070.0,122060.0,0.24909384]
[1760019003486,0.00740855,122070.0,122060.0,0.57953384]
[1760019003762,0.24696247,122070.0,122060.0,0.0802]
[1760019004113,0.23119887,122070.0,122060.0,0.51322554]
[1760019004329,0.36878928,122070.0,122060.0,0.53177554]
[1760019004673,0.36878928,122070.0,122060.0,0.0325217]
[1760019004921,0.09545826,122060.0,122050.0,0.30039064]
[1760019005125,0.18598887,122060.0,122050.0,0.55059064]
[1760019005328,0.37609271,122060.0,122050.0,0.03277362]
[1760019005529,0.44983382,122060.0,122050.0,0.36813362]
[1760019005730,0.44983382,122060.0,122050.0,0.03277362]
[1760019005940,0.40986382,122060.0,122050.0,0.03277362]
[1760019006138,0.25932552,122050.0,122040.0,0.0852]
[1760019006310,0.09545826,122030.0,122020.0,0.27582153]
[1760019006514,0.09545826,122030.0,122020.0,0.3956549]
[1760019006718,0.35896,122070.0,122060.0,0.16385384]
[1760019006919,0.54494848,122070.0,122060.0,0.44876922]
[1760019007123,0.74985563,122070.0,122060.0,0.43035922]
[1760019007325,0.78982563,122070.0,122060.0,0.26650538]
[1760019007526,0.78982563,122070.0,122060.0,0.01638538]
[1760019007738,0.78982563,122070.0,122060.0,0.26646538]
[1760019008195,0.79082563,122070.0,122060.0,0.01638538]
[1760019008401,0.62698522,122070.0,122060.0,0.43031922]
[1760019008741,0.44634696,122070.0,122060.0,0.47387922]
[1760019009607,0.02373525,122070.0,122060.0,0.22379922]
[1760019009797,0.0002,122080.0,122070.0,0.16384041]
[1760019010010,0.09565826,122080.0,122070.0,0.30225741]
[1760019010217,0.09565826,122080.0,122070.0,0.31190337]
[1760019010378,0.0002,122080.0,122070.0,0.31190337]
[1760019010586,0.0002,122080.0,122070.0,0.56190337]
[1760019011657,0.0002,122080.0,122070.0,0.31190337]
[1760019011860,0.0002,122080.0,122070.0,0.56190337]
[1760019012481,0.0002,122080.0,122070.0,0.56186337]
[1760019012622,0.0002,122080.0,122070.0,0.31190337]
[1760019012830,0.0002,122080.0,122070.0,0.56186337]
[1760019013224,0.0002,122080.0,122070.0,0.56182337]
[1760019014231,0.0002,122080.0,122070.0,0.39502543]
[1760019014606,0.0002,122080.0,122070.0,0.98574543]
[1760019015876,1e-08,122080.0,122070.0,1.10086542]
[1760019016083,1e-08,122080.0,122070.0,1.14355905]
[1760019016295,1e-08,122080.0,122070.0,1.41798456]
[1760019016516,0.0002,122120.0,122110.0,0.16378674]
[1760019016721,0.00035221,122120.0,122110.0,0.63305749]
[1760019016968,1e-08,122120.0,122110.0,0.69533749]
[1760019017179,1e-08,122120.0,122110.0,0.84523111]
[1760019017403,1e-08,122120.0,122110.0,1.09503111]
[1760019017606,1e-08,122120.0,122110.0,0.79282987]
[1760019017821,1e-08,122120.0,122110.0,1.46858987]
[1760019018457,1e-08,122120.0,122110.0,1.53092549]
[1760019018894,1e-08,122120.0,122110.0,1.53088549]
[1760019019560,0.06619503,122190.0,122180.0,0.16369291]
[1760019019778,0.0002,122200.0,122190.0,0.15018752]
[1760019019991,0.00070748,122200.0,122190.0,0.45848501]
[1760019020207,0.00070748,122200.0,122190.0,0.46989711]
[1760019020645,0.09616574,122200.0,122190.0,0.55505711]
[1760019020848,0.00070748,122200.0,122190.0,0.22021711]
[1760019021054,0.09616574,122200.0,122190.0,0.37137644]
[1760019021206,0.00070748,122200.0,122190.0,0.4544985]
[1760019021405,0.00070748,122200.0,122190.0,0.28621644]
[1760019021608,0.00070748,122200.0,122190.0,0.62097644]
[1760019022253,0.00070748,122200.0,122190.0,0.6188985]
[1760019022407,0.00070748,122200.0,122190.0,0.7040585]
[1760019022621,0.0068246,122200.0,122190.0,0.37137644]
[1760019022819,0.0068246,122200.0,122190.0,0.62093644]
[1760019023043,0.0068246,122200.0,122190.0,0.28621644]
[1760019023410,0.0068246,122200.0,122190.0,0.33512644]
[1760019023411,0.18540492,122200.0,122190.0,0.33512644]
[1760019023608,0.18540492,122200.0,122190.0,0.58464644]
[1760019023921,0.0068246,122200.0,122190.0,0.28621644]
[1760019024098,0.0068246,122200.0,122190.0,0.62085644]
[1760019024536,0.0068246,122200.0,122190.0,0.12253693]
[1760019024739,0.30885898,122200.0,122190.0,0.54018644]
[1760019024946,0.36765104,122200.0,122190.0,0.33464]
[1760019025159,0.36765104,122200.0,122190.0,0.51670951]
[1760019025361,0.36865104,122200.0,122190.0,0.08516]
[1760019025558,0.37606338,122200.0,122190.0,0.24883951]
[1760019025767,0.37606338,122200.0,122190.0,0.54300858]
[1760019025979,0.59913777,122190.0,122180.0,0.01839]
[1760019026193,0.68225983,122190.0,122180.0,0.01839]
[1760019026406,0.68225983,122190.0,122170.0,0.21834622]
[1760019026407,0.09545826,122180.0,122170.0,0.26721631]
[1760019026613,0.51858032,122190.0,122180.0,0.16369291]
[1760019026827,0.09545826,122190.0,122180.0,0.2529627]
[1760019027070,0.00170748,122200.0,122190.0,0.16367951]
[1760019027296,0.09616574,122200.0,122190.0,0.05464]
[1760019027537,0.72586392,122200.0,122190.0,0.49815951]
[1760019028011,0.5192878,122200.0,122190.0,0.26718951]
[1760019028253,0.5192878,122200.0,122190.0,0.57882951]
[1760019028486,0.68295392,122200.0,122190.0,0.2095368]
[1760019028709,0.5222878,122200.0,122190.0,0.32946951]
[1760019028926,0.00570748,122200.0,122190.0,0.32946951]
[1760019029149,0.10116574,122200.0,122190.0,0.57878951]
[1760019029378,0.10116574,122200.0,122190.0,0.57874951]
[1760019029596,0.00370748,122200.0,122190.0,0.57874951]
[1760019029813,0.00370748,122200.0,122190.0,0.65874631]
[1760019030017,0.00570748,122200.0,122190.0,0.40946631]
[1760019030218,0.00570748,122200.0,122190.0,0.65874631]
[1760019030432,0.00570748,122200.0,122190.0,0.32434631]
[1760019030642,0.10116574,122200.0,122190.0,0.37321631]
[1760019031096,0.10116574,122200.0,122190.0,0.40946631]
[1760019031297,0.09916574,122200.0,122190.0,0.65870631]
[1760019031722,0.10016574,122200.0,122190.0,0.40946631]
[1760019031925,0.10016574,122200.0,122190.0,0.65866631]
[1760019032344,0.10016574,122200.0,122190.0,0.40946631]
[1760019032567,0.00470748,122200.0,122190.0,0.65866631]
[1760019033217,0.00470748,122200.0,122190.0,0.49258837]
[1760019033422,0.00470748,122200.0,122190.0,0.74174837]
[1760019033634,0.00170748,122200.0,122190.0,0.49258837]
[1760019034278,0.0078246,122200.0,122190.0,0.74170837]
[1760019034528,0.01707253,122250.0,122240.0,0.16361256]
[1760019034706,0.00015223,122250.0,122240.0,0.34576382]
[1760019034920,0.09561049,122250.0,122240.0,0.34576382]
[1760019035116,0.09561049,122250.0,122240.0,0.59484382]
[1760019035117,0.11784088,122250.0,122240.0,0.59484382]
[1760019035322,0.01010887,122250.0,122240.0,0.59484382]
[1760019035540,0.00269874,122250.0,122240.0,0.59484382]
[1760019036202,0.00269874,122250.0,122240.0,0.59480382]
[1760019036864,0.00269874,122250.0,122240.0,0.67792588]
[1760019038637,0.00269874,122250.0,122240.0,0.67784588]
[1760019039058,0.00269874,122250.0,122240.0,0.42888588]
[1760019039269,0.00269874,122250.0,122240.0,0.34376588]
[1760019039479,0.00269874,122250.0,122240.0,0.83088337]
[1760019039694,0.00269874,122250.0,122240.0,1.07980337]
[1760019040973,0.0002,122270.0,122260.0,0.1635858]
[1760019041179,0.0002,122270.0,122260.0,0.46321313]
[1760019041390,0.0002,122270.0,122260.0,0.61010519]
[1760019041609,0.00121823,122270.0,122260.0,0.61010519]
[1760019042028,0.00121823,122270.0,122260.0,1.03550519]
[1760019042290,0.00121823,122270.0,122260.0,0.78666519]
[1760019042507,0.00121823,122270.0,122260.0,0.27810313]
[1760019042719,0.00121823,122270.0,122260.0,0.95234313]
[1760019043140,0.00121823,122270.0,122260.0,0.70354313]
[1760019043376,0.00121823,122270.0,122260.0,0.78666519]
[1760019043648,0.00121823,122270.0,122260.0,1.03542519]
[1760019044340,1e-08,122270.0,122260.0,1.06042518]
[1760019044558,1e-08,122270.0,122260.0,0.36122519]
[1760019044769,1e-08,122270.0,122260.0,1.03534519]
[1760019045196,1e-08,122270.0,122260.0,0.61842313]
[1760019045427,1e-08,122270.0,122260.0,0.95218313]
[1760019045664,1e-08,122270.0,122260.0,0.78762519]
[1760019045904,1e-08,122270.0,122260.0,1.03730519]
[1760019046141,1e-08,122270.0,122260.0,1.06230518]
[1760019046390,1e-08,122270.0,122260.0,0.38722518]
[1760019046640,1e-08,122270.0,122260.0,1.03626519]
[1760019048027,1e-08,122270.0,122260.0,0.95214313]
[1760019048443,1e-08,122270.0,122260.0,0.95202313]
[1760019048652,1e-08,122270.0,122260.0,0.27810313]
[1760019048861,1e-08,122270.0,122260.0,0.61170313]
[1760019049516,1e-08,122270.0,122260.0,0.57419313]
[1760019049726,1e-08,122270.0,122260.0,0.61201313]
[1760019050389,1e-08,122270.0,122260.0,0.27841313]
[1760019050602,1e-08,122270.0,122260.0,0.57415313]
[1760019050808,1e-08,122270.0,122260.0,0.61197313]
[1760019052048,1e-08,122270.0,122260.0,0.36345313]
[1760019052262,0.38389275,122270.0,122260.0,0.38426733]
[1760019052478,0.38389275,122270.0,122260.0,0.54785313]
[1760019052679,0.22032033,122270.0,122260.0,0.54785313]